bitfinex/quotes_SOLUSD_20240712
["timestamp","ask_amount","ask_price","bid_price","bid_amount"]
[1720818645267,13.41,138.4,138.37,15.9221]
[1720818645469,13.41,138.39,138.37,15.9221]
[1720818648091,13.41,138.4,138.37,15.9221]
[1720818649170,7.225,138.41,138.37,15.9221]
[1720818649571,13.41,138.4,138.37,15.9221]
[1720818650193,13.41,138.39,138.37,15.9221]
[1720818651098,13.41,138.4,138.37,15.9221]
[1720818651667,20.6354,138.4,138.37,15.9221]
[1720818651872,13.41,138.39,138.34,35.9907]
[1720818652089,13.41,138.38,138.34,22.5807]
[1720818654074,13.41,138.4,138.34,35.9907]
[1720818654780,13.41,138.4,138.35,13.41]
[1720818656184,13.41,138.4,138.34,35.9907]
[1720818657807,7.55312981,138.42,138.34,22.5807]
[1720818657984,2.87932073,138.43,138.37,13.41]
[1720818658290,13.41,138.41,138.34,22.5807]
[1720818658489,13.41,138.41,138.35,13.41]
[1720818660180,13.41,138.4,138.35,13.41]
[1720818660686,13.41,138.39,138.34,22.5807]
[1720818661779,13.41,138.38,138.34,16.5658]
[1720818662100,13.41,138.37,138.34,16.5658]
[1720818662674,7.2255,138.4,138.34,16.5658]
[1720818662873,13.41,138.37,138.34,16.5658]
[1720818663284,13.41,138.37,138.31,6.0642]
[1720818663594,13.41,138.37,138.31,19.4742]
[1720818663801,13.41,138.36,138.31,19.4742]
[1720818664892,13.41,138.34,138.31,6.0642]
[1720818665593,52.226,138.39,138.31,6.0642]
[1720818666175,52.226,138.39,138.31,19.4742]
[1720818666595,52.226,138.39,138.31,6.0642]
[1720818667193,7.2268,138.38,138.31,6.0642]
[1720818667405,52.2271,138.37,138.31,6.0642]
[1720818667701,7.2271,138.37,138.31,6.0642]
[1720818668092,7.2276,138.36,138.3,15.1502]
[1720818668287,7.2276,138.36,138.3,28.5602]
[1720818668491,7.2276,138.36,138.3,15.1502]
[1720818671520,7.2276,138.36,138.3,28.5602]
[1720818672585,7.2282,138.35,138.3,28.5602]
[1720818673084,7.228,138.35,138.3,28.5602]
[1720818673284,7.228,138.35,138.3,15.1502]
[1720818673485,7.55144685,138.37,138.3,28.5602]
[1720818673691,14.77884685,138.37,138.3,28.5602]
[1720818674191,7.2276,138.36,138.3,28.5602]
[1720818675113,7.2276,138.36,138.3,15.1502]
[1720818675907,14.77854685,138.37,138.3,15.1502]
[1720818676100,14.77854685,138.37,138.3,28.5602]
[1720818676608,7.2276,138.36,138.3,28.5602]
[1720818677109,7.2276,138.36,138.3,15.1502]
[1720818677811,7.2276,138.36,138.3,28.5602]
[1720818683305,7.2282,138.35,138.3,15.1502]
[1720818684203,13.41,138.32,138.3,15.1502]
[1720818685314,13.41,138.31,138.3,15.1502]
[1720818685809,7.231,138.3,138.28,0.8505491]
[1720818686015,31.4879,138.29,138.26,16.4715]
[1720818686311,20.6422,138.27,138.24,6.0416]
[1720818687307,13.41,138.25,138.23,16.4715]
[1720818687901,30.0,138.24,138.23,16.4715]
[1720818696711,30.0,138.24,138.23,29.8815]
[1720818698457,7.54221197,138.32,138.24,6.4911]
[1720818698774,7.2299,138.32,138.27,13.41]
[1720818699251,20.6399,138.32,138.27,13.41]
[1720818699554,7.2302,138.31,138.27,13.41]
[1720818700053,7.2302,138.31,138.26,13.41]
[1720818700356,30.0,138.27,138.26,13.41]
[1720818706640,30.0,138.27,138.24,6.4911]
[1720818706840,30.0,138.27,138.26,13.41]
[1720818707346,30.0,138.27,138.24,6.4911]
[1720818707850,30.0,138.27,138.25,13.41]
[1720818708032,30.0,138.27,138.24,19.9011]
[1720818711248,30.0,138.27,138.25,13.41]
[1720818711846,20.6408,138.3,138.25,13.41]
[1720818712844,7.2302,138.31,138.26,13.41]
[1720818713038,20.6402,138.31,138.26,13.41]
[1720818713352,7.2302,138.31,138.26,13.41]
[1720818713544,20.6402,138.31,138.26,13.41]
[1720818714441,7.2307,138.3,138.26,13.41]
[1720818714748,7.2307,138.3,138.24,6.4911]
[1720818714953,13.41,138.31,138.25,13.41]
[1720818715154,7.2313,138.29,138.25,13.41]
[1720818717146,65.6408,138.3,138.25,13.41]
[1720818717743,45.0,138.3,138.25,13.41]
[1720818717943,65.6407,138.3,138.25,13.41]
[1720818723767,58.41,138.3,138.25,13.41]
[1720818724344,45.0,138.3,138.25,13.41]
[1720818725440,13.6064342,138.32,138.26,13.41]
[1720818725441,14.7717342,138.32,138.26,13.41]
[1720818725661,45.0,138.31,138.26,13.41]
[1720818725867,52.2301,138.31,138.26,13.41]
[1720818726182,45.0,138.31,138.27,13.41]
[1720818726551,65.6396,138.32,138.27,13.41]
[1720818726945,52.2296,138.32,138.27,13.41]
[1720818727165,65.6396,138.32,138.27,13.41]
[1720818728661,45.0,138.32,138.27,13.41]
[1720818729152,45.0,138.32,138.28,13.41]
[1720818730247,52.2297,138.32,138.28,13.41]
[1720818730859,7.2287,138.34,138.26,6.1003]
[1720818731058,35.73411347,138.37,138.31,13.41]
[1720818731255,30.0,138.32,138.31,13.41]
[1720818731866,7.2281,138.35,138.31,13.41]
[1720818734680,7.2287,138.34,138.31,13.41]
[1720818736060,7.2282,138.35,138.31,13.41]
[1720818736473,13.02980161,138.35,138.31,13.41]
[1720818737393,7.2285,138.34,138.31,13.41]
[1720818737597,7.2285,138.34,138.3,13.41]
[1720818738384,13.02980161,138.35,138.31,13.41]
[1720818740297,36.50878569,138.37,138.34,13.41]
[1720818740298,7.53858569,138.37,138.34,13.41]
[1720818740467,15.036,138.42,138.36,13.41]
[1720818740673,7.2237,138.44,138.41,13.41]
[1720818742869,7.2239,138.43,138.41,13.41]
[1720818743293,7.2244,138.42,138.32,15.7908]
[1720818743472,7.2244,138.42,138.33,45.0]
[1720818743672,7.2244,138.42,138.39,13.41]
[1720818744084,7.224,138.43,138.39,13.41]
[1720818744292,7.2233,138.44,138.4,13.41]
[1720818748585,7.223,138.45,138.4,13.41]
[1720818748788,7.2234,138.44,138.41,13.41]
[1720818749775,7.2234,138.44,138.36,6.6183]
[1720818749981,7.2234,138.44,138.41,13.41]
[1720818755687,7.2234,138.44,138.4,13.41]
[1720818756070,7.223,138.45,138.4,13.41]
[1720818761377,7.223,138.45,138.41,13.41]
[1720818762680,29.79301019,138.46,138.41,13.41]
[1720818764206,22.2584,138.46,138.42,13.41]
[1720818765892,22.2584,138.46,138.43,13.41]
[1720818767887,7.2228,138.45,138.42,13.41]
[1720818768087,7.2228,138.45,138.41,13.41]
[1720818770899,7.2234,138.44,138.38,15.235]
[1720818771102,7.2234,138.44,138.4,13.41]
[1720818771311,7.2229,138.45,138.4,13.41]
[1720818774388,7.2229,138.45,138.41,13.41]
[1720818774980,22.2583,138.46,138.41,13.41]
[1720818775185,45.0,138.45,138.41,13.41]
[1720818776302,22.2583,138.46,138.41,13.41]
[1720818776507,15.036,138.46,138.42,13.41]
[1720818780712,15.036,138.46,138.38,15.235]
[1720818780713,22.2583,138.46,138.38,15.235]
[1720818780898,22.2583,138.46,138.42,13.41]
[1720818781610,7.2232,138.45,138.38,15.235]
[1720818781808,7.2232,138.45,138.41,13.41]
[1720818782112,15.036,138.46,138.38,15.235]
[1720818782303,7.2229,138.45,138.4,13.41]
[1720818782507,28.446,138.46,138.36,6.6183]
[1720818782815,52.2228,138.45,138.4,13.41]
[1720818783012,65.6328,138.45,138.4,13.41]
[1720818783188,65.6328,138.45,138.36,6.6183]
[1720818783189,52.2228,138.45,138.36,6.6183]
[1720818783397,7.2234,138.44,138.4,13.41]
[1720818783794,45.0,138.45,138.41,13.41]
[1720818784102,7.2228,138.45,138.36,6.6183]
[1720818784431,45.0,138.44,138.4,13.41]
[1720818785695,21.5406,138.43,138.31,22.7806]
[1720818785895,21.5406,138.43,138.35,13.41]
[1720818785896,7.2255,138.4,138.35,13.41]
[1720818786096,20.635,138.41,138.31,22.7806]
[1720818786298,20.635,138.41,138.35,13.41]
[1720818786605,45.0,138.4,138.35,13.41]
[1720818787198,45.0,138.4,138.36,13.41]
[1720818790197,45.0,138.4,138.35,13.41]
[1720818791219,20.635,138.41,138.35,13.41]
[1720818791631,13.41,138.41,138.35,13.41]
[1720818791926,20.635,138.41,138.35,13.41]
[1720818792126,45.0,138.4,138.35,13.41]
[1720818796827,20.635,138.41,138.35,13.41]
[1720818797326,20.6369,138.38,138.31,22.7806]
[1720818797527,45.0,138.37,138.32,13.41]
[1720818797729,45.0,138.37,138.33,13.41]
[1720818798037,20.6361,138.39,138.33,13.41]
[1720818798335,45.0,138.38,138.33,13.41]
[1720818803136,58.41,138.38,138.32,13.41]
[1720818814338,82.2576,138.38,138.28,23.194]
[1720818814528,82.2576,138.38,138.32,13.41]
[1720818815134,13.41,138.37,138.31,13.41]
[1720818815442,13.41,138.4,138.35,13.41]
[1720818815647,45.0,138.39,138.34,13.41]
[1720818815841,58.41,138.39,138.29,20.0]
[1720818816048,13.41,138.38,138.33,13.41]
[1720818816441,65.6359,138.39,138.33,13.41]
[1720818816643,58.41,138.39,138.33,13.41]
[1720818819249,45.0,138.39,138.34,13.41]
[1720818819455,45.0,138.39,138.35,13.41]
[1720818819750,58.41,138.4,138.34,13.41]
[1720818820148,45.0,138.4,138.35,13.41]
[1720818821846,52.2254,138.4,138.35,13.41]
[1720818825350,23.77095071,138.42,138.37,13.41]
[1720818825538,16.2372,138.42,138.37,13.41]
[1720818826147,23.4616,138.42,138.37,13.41]
[1720818826335,16.2372,138.42,138.37,13.41]
[1720818826649,16.2372,138.42,138.38,13.41]
[1720818827655,20.6334,138.44,138.38,13.41]
[1720818828742,14.76104484,138.45,138.39,13.41]
[1720818829048,45.0,138.44,138.39,13.41]
[1720818829640,65.6334,138.44,138.39,13.41]
[1720818830241,52.2234,138.44,138.39,13.41]
[1720818834956,45.0,138.44,138.39,13.41]
[1720818836361,45.0,138.44,138.4,13.41]
[1720818837358,52.2234,138.44,138.4,13.41]
[1720818837946,52.2234,138.44,138.39,13.41]
[1720818840265,7.224,138.43,138.32,76.3872]
[1720818840440,7.224,138.43,138.38,13.41]
[1720818841468,65.6335,138.44,138.38,13.41]
[1720818843064,52.2235,138.44,138.38,13.41]
[1720818843366,45.0,138.44,138.39,13.41]
[1720818843550,45.0,138.44,138.4,13.41]
[1720818844573,45.0,138.44,138.39,13.41]
[1720818844745,45.0,138.44,138.4,13.41]
[1720818846166,45.0,138.44,138.39,13.41]
[1720818846556,58.41,138.44,138.32,76.3872]
[1720818846766,20.6342,138.43,138.37,13.41]
[1720818847553,13.41,138.42,138.36,13.41]
[1720818847875,7.53814484,138.45,138.41,13.41]
[1720818848173,15.998,138.49,138.38,42.6043]
[1720818848386,15.998,138.49,138.39,55.81730113]
[1720818848574,15.998,138.49,138.4,1.44437627]
[1720818848870,13.41,138.49,138.43,13.41]
[1720818849052,13.41,138.49,138.38,42.6043]
[1720818849254,40.7509845,138.53,138.45,13.41]
[1720818849255,33.5319845,138.53,138.45,13.41]
[1720818849489,13.41,138.51,138.4,53.64]
[1720818849654,13.41,138.51,138.46,13.41]
[1720818850363,23.5319845,138.53,138.4,53.64]
[1720818850555,36.9419845,138.53,138.48,13.41]
[1720818851075,13.41,138.52,138.47,13.41]
[1720818851379,23.5319845,138.53,138.48,13.41]
[1720818852957,23.5319845,138.53,138.49,13.41]
[1720818853259,23.5319845,138.53,138.5,13.41]
[1720818854374,7.5339845,138.53,138.5,13.41]
[1720818856486,15.998,138.56,138.51,13.41]
[1720818856689,15.998,138.56,138.48,13.41]
[1720818856886,15.998,138.56,138.53,13.41]
[1720818858891,15.998,138.56,138.48,13.41]
[1720818859097,15.998,138.56,138.52,13.41]
[1720818862907,13.41,138.55,138.43,25.46473105]
[1720818863107,13.41,138.55,138.5,13.41]
[1720818863495,29.408,138.56,138.5,13.41]
[1720818863817,58.41,138.55,138.5,13.41]
[1720818864600,45.0,138.55,138.43,22.6043]
[1720818864811,13.41,138.51,138.43,22.6043]
[1720818865201,13.41,138.51,138.45,13.41]
[1720818865723,13.41,138.5,138.45,13.41]
[1720818866033,58.41,138.49,138.43,13.41]
[1720818866224,13.41,138.48,138.43,13.41]
[1720818866424,13.41,138.48,138.42,13.41]
[1720818867697,45.0,138.49,138.39,22.5186]
[1720818867903,13.41,138.48,138.42,13.41]
[1720818868324,45.0,138.47,138.42,13.41]
[1720818868609,13.41,138.48,138.42,13.41]
[1720818869102,45.0,138.47,138.42,13.41]
[1720818870127,58.41,138.47,138.42,13.41]
[1720818870909,45.0,138.47,138.42,13.41]
[1720818872634,13.41,138.45,138.4,13.41]
[1720818872928,30.0,138.46,138.4,13.41]
[1720818873133,43.41,138.46,138.4,13.41]
[1720818873338,43.41,138.46,138.41,13.41]
[1720818874830,43.41,138.46,138.36,22.5186]
[1720818874831,60.0684,138.46,138.36,22.5186]
[1720818875033,45.0,138.45,138.4,13.41]
[1720818875231,58.41,138.45,138.39,13.41]
[1720818875916,45.0,138.45,138.4,13.41]
[1720818877124,45.0,138.45,138.41,13.41]
[1720818878232,58.41,138.45,138.37,20.0]
[1720818878423,72.2208,138.45,138.36,22.5186]
[1720818878616,43.41,138.44,138.38,13.41]
[1720818878818,45.0,138.43,138.38,13.41]
[1720818879319,30.0,138.44,138.39,13.41]
[1720818879532,45.0,138.43,138.4,13.41]
[1720818880316,45.0,138.44,138.39,13.41]
[1720818882934,6.588,138.45,138.39,13.41]
[1720818883147,19.998,138.45,138.39,13.41]
[1720818884125,31.40745908,138.46,138.39,13.41]
[1720818884327,58.41,138.45,138.39,13.41]
[1720818885143,45.0,138.45,138.4,13.41]
[1720818885518,45.0,138.45,138.41,13.41]
[1720818887632,16.6584,138.46,138.42,13.41]
[1720818889934,27.0343,138.48,138.42,13.41]
[1720818890135,45.0,138.47,138.42,13.41]
[1720818890746,7.52564752,138.49,138.46,13.41]
[1720818890947,28.5232,138.53,138.48,13.41]
[1720818891145,15.1132,138.53,138.48,13.41]
[1720818891644,28.5232,138.53,138.48,13.41]
[1720818892047,45.0,138.52,138.47,13.41]
[1720818892253,7.2197,138.51,138.42,22.2552]
[1720818892456,65.6293,138.52,138.46,13.41]
[1720818892750,52.2193,138.52,138.46,13.41]
[1720818893134,52.2193,138.52,138.47,13.41]
[1720818893945,45.0,138.52,138.47,13.41]
[1720818895933,15.1132,138.53,138.43,20.0]
[1720818896140,15.1132,138.53,138.49,13.41]
[1720818898658,15.1132,138.53,138.5,13.41]
[1720818899253,15.1132,138.53,138.43,20.0]
[1720818899452,15.1132,138.53,138.49,13.41]
[1720818900230,15.1132,138.53,138.43,20.0]
[1720818900435,65.6294,138.52,138.47,13.41]
[1720818902149,45.0,138.52,138.47,13.41]
[1720818902341,45.0,138.52,138.43,20.0]
[1720818902543,45.0,138.52,138.48,13.41]
[1720818903741,15.1132,138.53,138.48,13.41]
[1720818904365,15.1132,138.53,138.43,20.0]
[1720818904366,15.1132,138.53,138.49,13.41]
[1720818904935,22.3319,138.53,138.43,20.0]
[1720818905140,65.6295,138.52,138.46,13.41]
[1720818905361,58.41,138.52,138.46,13.41]
[1720818905557,58.41,138.52,138.47,13.41]
[1720818907058,45.0,138.52,138.48,13.41]
[1720818907648,20.6297,138.51,138.43,20.0]
[1720818907849,45.0,138.5,138.45,13.41]
[1720818908042,45.0,138.52,138.47,13.41]
[1720818908248,45.0,138.52,138.49,13.41]
[1720818908945,45.0,138.52,138.43,20.0]
[1720818909145,65.6294,138.52,138.46,13.41]
[1720818910063,58.41,138.52,138.46,13.41]
[1720818910267,58.41,138.52,138.47,13.41]
[1720818913563,65.6291,138.52,138.46,13.41]
[1720818913748,20.6299,138.51,138.43,20.0]
[1720818913943,30.0,138.49,138.45,13.41]
[1720818914348,45.0,138.48,138.45,13.41]
[1720818914560,45.0,138.48,138.43,20.0]
[1720818914754,45.0,138.48,138.45,13.41]
[1720818917657,30.0,138.49,138.47,13.41]
[1720818918167,30.0,138.49,138.43,20.0]
[1720818918473,30.0,138.49,138.48,13.41]
[1720818919264,28.5232,138.53,138.47,13.41]
[1720818919469,13.41,138.52,138.47,13.41]
[1720818919650,58.41,138.52,138.47,13.41]
[1720818919850,45.0,138.52,138.47,13.41]
[1720818920563,45.0,138.52,138.48,13.41]
[1720818921269,58.41,138.52,138.47,13.41]
[1720818921663,45.0,138.52,138.47,13.41]
[1720818922271,45.0,138.52,138.48,13.41]
[1720818922575,45.0,138.52,138.47,13.41]
[1720818924053,45.0,138.52,138.48,13.41]
[1720818924266,52.2192,138.52,138.48,13.41]
[1720818924465,65.6292,138.52,138.46,13.41]
[1720818925355,58.41,138.52,138.46,13.41]
[1720818925768,65.6291,138.52,138.46,13.41]
[1720818925974,13.41,138.51,138.46,13.41]
[1720818926155,45.0,138.5,138.46,13.41]
[1720818928564,45.0,138.51,138.46,13.41]
[1720818930184,17.99137306,138.53,138.47,13.41]
[1720818930383,31.40137306,138.53,138.47,13.41]
[1720818930875,20.6295,138.52,138.46,13.41]
[1720818931267,13.41,138.52,138.46,13.41]
[1720818931466,45.0,138.51,138.43,20.0]
[1720818931663,45.0,138.51,138.46,13.41]
[1720818933790,45.0,138.51,138.47,13.41]
[1720818934161,45.0,138.52,138.47,13.41]
[1720818935159,45.0,138.52,138.43,20.0]
[1720818935386,45.0,138.52,138.47,13.41]
[1720818937275,45.0,138.52,138.43,20.0]
[1720818937457,45.0,138.52,138.48,13.41]
[1720818938862,15.2724,138.57,138.51,13.41]
[1720818939062,15.2724,138.57,138.48,53.64]
[1720818939384,15.2724,138.57,138.53,13.41]
[1720818939567,15.2724,138.57,138.44,22.1447]
[1720818939568,30.0,138.54,138.44,22.1447]
[1720818939767,30.0,138.54,138.52,13.41]
[1720818939976,35.8992,138.57,138.52,13.41]
[1720818940562,45.0,138.56,138.52,13.41]
[1720818942172,45.0,138.56,138.53,13.41]
[1720818943260,45.0,138.56,138.49,22.3721]
[1720818943465,58.41,138.56,138.46,22.3721]
[1720818943671,58.41,138.56,138.5,13.41]
[1720818944072,13.41,138.55,138.5,13.41]
[1720818944571,45.0,138.54,138.49,13.41]
[1720818945086,13.41,138.56,138.5,13.41]
[1720818945272,45.0,138.55,138.5,13.41]
[1720818945466,45.0,138.55,138.46,22.3721]
[1720818945467,30.0,138.53,138.46,22.3721]
[1720818945687,30.0,138.53,138.48,13.41]
[1720818948775,30.0,138.53,138.49,13.41]
[1720818950592,30.0,138.53,138.5,13.41]
[1720818950996,45.0,138.55,138.51,13.41]
[1720818954397,45.0,138.56,138.51,13.41]
[1720818955691,45.0,138.56,138.46,22.3721]
[1720818955899,45.0,138.56,138.51,13.41]
[1720818960088,45.0,138.56,138.46,22.3721]
[1720818960293,13.41,138.55,138.47,20.0]
[1720818960481,45.0,138.54,138.5,13.41]
[1720818961001,45.0,138.55,138.5,13.41]
[1720818961197,55.0,138.55,138.46,22.3721]
[1720818961396,55.0,138.55,138.45,13.41]
[1720818961397,13.41,138.51,138.45,13.41]
[1720818961589,13.41,138.5,138.45,13.41]
[1720818961788,13.41,138.5,138.43,16.083]
[1720818961990,13.41,138.5,138.44,13.41]
[1720818962204,13.41,138.49,138.44,13.41]
[1720818963588,22.9077,138.52,138.43,16.083]
[1720818963589,15.6883,138.52,138.48,13.41]
[1720818963900,19.9609,138.54,138.49,13.41]
[1720818964099,45.0,138.53,138.49,13.41]
[1720818965518,45.0,138.53,138.48,13.41]
[1720818966222,45.0,138.53,138.49,13.41]
[1720818966385,45.0,138.54,138.49,13.41]
[1720818968685,33.30745956,138.56,138.5,13.41]
[1720818968889,18.57098185,138.56,138.51,13.41]
[1720818969104,31.98098185,138.56,138.51,13.41]
[1720818969323,39.19798185,138.56,138.51,13.41]
[1720818969617,31.98098185,138.56,138.51,13.41]
[1720818969783,29.0983,138.56,138.51,13.41]
[1720818969983,45.0,138.55,138.51,13.41]
[1720818971099,65.6278,138.55,138.48,16.083]
[1720818971313,65.6278,138.55,138.49,13.41]
[1720818971519,45.0,138.55,138.49,13.41]
[1720818971716,58.41,138.55,138.49,13.41]
[1720818972627,65.6277,138.55,138.49,13.41]
[1720818973222,13.41,138.54,138.49,13.41]
[1720818973518,65.6277,138.55,138.49,13.41]
[1720818974823,45.0,138.55,138.45,16.083]
[1720818975024,7.2194,138.52,138.46,13.41]
[1720818976220,75.0,138.51,138.45,29.493]
[1720818977407,75.0,138.51,138.46,13.41]
[1720818977603,82.2196,138.51,138.45,13.41]
[1720818978902,75.0,138.51,138.45,13.41]
[1720818980790,7.2202,138.5,138.45,13.41]
[1720818981097,75.0,138.51,138.45,13.41]
[1720818981308,82.2198,138.51,138.45,13.41]
[1720818982398,75.0,138.51,138.47,13.41]
[1720818982823,30.0,138.51,138.47,13.41]
[1720818983514,30.0,138.51,138.44,6.38]
[1720818983515,30.0,138.51,138.46,13.41]
[1720818986124,30.0,138.51,138.47,13.41]
[1720818986627,30.0,138.51,138.46,13.41]
[1720818988131,20.6291,138.52,138.46,13.41]
[1720818988316,45.0,138.51,138.46,13.41]
[1720818991004,7.52145474,138.55,138.48,13.41]
[1720818991205,20.6281,138.54,138.48,13.41]
[1720818991405,20.6287,138.53,138.48,13.41]
[1720818991626,20.6287,138.53,138.47,13.41]
[1720818992009,20.6291,138.52,138.44,6.38]
[1720818992320,13.41,138.51,138.46,13.41]
[1720818992517,45.0,138.5,138.46,13.41]
[1720818992912,45.0,138.51,138.46,13.41]
[1720818995717,45.0,138.51,138.42,16.3656]
[1720818996023,45.0,138.51,138.45,13.41]
[1720818996024,58.41,138.51,138.45,13.41]
[1720818997124,30.0,138.49,138.45,13.41]
[1720819001116,58.41,138.51,138.45,13.41]
[1720819006640,45.0,138.51,138.46,13.41]
[1720819008812,22.8424,138.52,138.46,13.41]
[1720819009228,15.6233,138.52,138.46,13.41]
[1720819009925,22.8425,138.52,138.46,13.41]
[1720819010122,45.0,138.51,138.46,13.41]
[1720819010710,45.0,138.51,138.47,13.41]
[1720819016925,45.0,138.51,138.46,13.41]
[1720819017130,58.41,138.51,138.46,13.41]
[1720819017343,65.6299,138.51,138.46,13.41]
[1720819017521,65.6299,138.51,138.45,13.41]
[1720819019729,13.41,138.49,138.41,6.0194]
[1720819019929,13.41,138.46,138.4,13.41]
[1720819021344,45.5908,138.48,138.42,13.41]
[1720819021545,52.2219,138.47,138.38,15.3382]
[1720819021753,58.41,138.47,138.41,13.41]
[1720819022048,30.0,138.45,138.41,13.41]
[1720819022241,30.0,138.45,138.38,15.3382]
[1720819022437,30.0,138.45,138.41,13.41]
[1720819025343,30.0,138.45,138.4,13.41]
[1720819025656,43.41,138.45,138.4,13.41]
[1720819025950,13.41,138.44,138.39,20.0]
[1720819026130,30.0,138.43,138.38,13.41]
[1720819026462,13.41,138.42,138.37,13.41]
[1720819026836,43.41,138.43,138.37,13.41]
[1720819027148,30.0,138.43,138.37,13.41]
[1720819027329,43.41,138.43,138.37,13.41]
[1720819030732,43.41,138.43,138.33,22.8991]
[1720819030933,13.41,138.42,138.34,20.0]
[1720819031147,13.41,138.42,138.36,13.41]
[1720819032635,65.6349,138.41,138.35,13.41]
[1720819032830,58.41,138.41,138.33,22.8991]
[1720819033034,58.41,138.41,138.35,13.41]
[1720819033755,45.0,138.41,138.33,22.8991]
[1720819033971,58.41,138.41,138.35,13.41]
[1720819034148,13.41,138.4,138.35,13.41]
[1720819034855,58.41,138.41,138.35,13.41]
[1720819035673,58.41,138.41,138.33,22.8991]
[1720819035848,13.41,138.4,138.35,13.41]
[1720819037342,45.0,138.41,138.33,22.8991]
[1720819037652,58.41,138.41,138.35,13.41]
[1720819037859,45.5908,138.43,138.33,22.8991]
[1720819038170,45.0,138.42,138.37,13.41]
[1720819038370,58.41,138.42,138.37,13.41]
[1720819038756,45.0,138.42,138.37,13.41]
[1720819040245,58.41,138.42,138.37,13.41]
[1720819041746,65.6343,138.42,138.33,22.8991]
[1720819041952,65.6343,138.42,138.36,13.41]
[1720819044972,65.6343,138.42,138.34,20.0]
[1720819045157,65.6343,138.42,138.36,13.41]
[1720819045568,13.41,138.41,138.35,13.41]
[1720819046471,20.6349,138.41,138.35,13.41]
[1720819046671,58.41,138.4,138.34,13.41]
[1720819047974,45.0,138.4,138.35,13.41]
[1720819049800,52.8148,138.43,138.36,13.41]
[1720819049956,58.41,138.42,138.36,13.41]
[1720819050376,13.41,138.41,138.29,21.2627]
[1720819050698,13.41,138.41,138.35,13.41]
[1720819051391,13.41,138.41,138.36,13.41]
[1720819052881,52.2244,138.42,138.36,13.41]
[1720819053088,13.41,138.41,138.35,13.41]
[1720819056200,45.0,138.4,138.35,13.41]
[1720819058474,58.41,138.4,138.34,13.41]
[1720819062688,13.41,138.41,138.35,13.41]